Workbook

Sheet Cross Overs (hidden)
B2: LA4 Series
B3: Lumen Package | C3: CCT | D3: Voltage | E3: CRI | F3: Driver | G3: Rough In Option | H3: Beam | I3: Finish | K3: Trim Options | M3: Cross Over? | N3: No
B4: 08LM | C4: 27K | D4: 120 | E4: 80 | F4: ECOD | G4: F | H4: SP | I4: BD | J4: PTD | K4: PF
B5: 13LM | C5: 30K | D5: 277 | E5: 90 | F5: ZT | G5: CP | H5: NFL | I5: BS | J5: PTS | M5: Sum of Shipments DSP | N5: Column Labels
B6: 15LM | C6: 35K | D6: 347 | E6: SPW | F6: EZ1 | G6: BR | H6: FLD | I6: CD | J6: WH | M6: Row Labels | N6: LA4 | O6: LA6 | P6: LA8 | Q6: Grand Total
B7: 17LM | C7: 40K | F7: EZB | G7: BR20C | I7: CS | J7: WTD | M7: FY21 | N7: 1387.4123 | O7: 48762.7826 | P7: 16834.98 | Q7: 66985.1749
B8: 23LM | G8: NL | I8: CSS | J8: WTS | M8: Housing | N8: 280.22 | O8: 43969.2035 | P8: 13749.75 | Q8: 57999.1735
B9: 28LM | G9: NLTAIR2 | I9: GD | M9: Trim | N9: 1107.1923 | O9: 4793.5791 | P9: 3085.23 | Q9: 8986.0014
B10: 33LM | G10: AE2CD | I10: GS | M10: FY22 | N10: 8485.0088 | O10: 94088.9418 | P10: 18335.15 | Q10: 120909.1006 | R10: =Q10/498650.01 -> 0.2424728731
M11: Housing | N11: 4887.22 | O11: 85067.0485 | P11: 15803.15 | Q11: 105757.4185
B12: LA6 Series | M12: Trim | N12: 3597.7888 | O12: 9021.8933 | P12: 2532 | Q12: 15151.6821
B13: Lumen Package | C13: CCT | D13: Voltage | E13: CRI | F13: Driver | G13: Rough In Option | H13: Beam | I13: Finish | K13: Trim Options | M13: FY23 | N13: 4851.2132 | O13: 18863.58 | P13: 310.4 | Q13: 24025.1932 | R13: =Q13/124552.19 -> 0.1928925794
B14: 08LM | C14: 27K | D14: 120 | E14: 80 | F14: ECOD | G14: F | H14: SP | I14: BD | J14: PTD | K14: PF | M14: Housing | N14: 2133.97 | O14: 16689.91 | P14: 310.4 | Q14: 19134.28
B15: 13LM | C15: 30K | D15: 277 | E15: 90 | F15: ZT | G15: CP | H15: NFL | I15: BS | J15: PTS | M15: Trim | N15: 2717.2432 | O15: 2173.67 | Q15: 4890.9132
B16: 15LM | C16: 35K | D16: 347 | E16: SPW | F16: EZ1 | G16: BR | H16: FLD | I16: CD | J16: WH | M16: FY24 | N16: 2167.1 | O16: 8884.9 | P16: 615.7 | Q16: 11667.7
B17: 17LM | C17: 40K | F17: EZB | G17: BR20C | I17: CS | J17: WTD | M17: Housing | O17: 8884.9 | P17: 615.7 | Q17: 9500.6
B18: 23LM | G18: NL | I18: CSS | J18: WTS | M18: Trim | N18: 2167.1 | Q18: 2167.1
B19: 28LM | G19: NLTAIR2 | I19: GD | M19: Cross Over? | N19: No
B20: 33LM | G20: AE2CD | I20: GS
M21: Sum of Quantity | N21: Column Labels
B22: LA8 Series | M22: Row Labels | N22: LA4 | O22: LA6 | P22: LA8 | Q22: Grand Total
B23: Lumen Package | C23: CCT | D23: Voltage | E23: CRI | F23: Driver | G23: Rough In Option | H23: Beam | I23: Finish | K23: Trim Options | M23: FY21 | N23: 34 | O23: 340 | P23: 90 | Q23: 464
B24: 08LM | C24: 27K | D24: 120 | E24: 80 | F24: ECOD | G24: F | H24: SP | I24: BD | J24: PTD | K24: PF | M24: Housing | N24: 1 | O24: 221 | P24: 37 | Q24: 259
B25: 13LM | C25: 30K | D25: 277 | E25: 90 | F25: ZT | G25: CP | H25: NFL | I25: BS | J25: PTS | M25: Trim | N25: 33 | O25: 119 | P25: 53 | Q25: 205
B26: 15LM | C26: 35K | D26: 347 | E26: SPW | F26: EZ1 | G26: BR | H26: FLD | I26: CD | J26: WH | M26: FY22 | N26: 105 | O26: 523 | P26: 95 | Q26: 723
B27: 17LM | C27: 40K | F27: EZB | G27: BR20C | I27: CS | J27: WTD | M27: Housing | N27: 16 | O27: 339 | P27: 55 | Q27: 410
B28: 23LM | G28: NL | I28: CSS | J28: WTS | M28: Trim | N28: 89 | O28: 184 | P28: 40 | Q28: 313
B29: 28LM | G29: NLTAIR2 | I29: GD | M29: FY23 | N29: 61 | O29: 107 | P29: 1 | Q29: 169
B30: 33LM | G30: AE2CD | I30: GS | M30: Housing | N30: 7 | O30: 67 | P30: 1 | Q30: 75
M31: Trim | N31: 54 | O31: 40 | Q31: 94
M32: FY24 | N32: 42 | O32: 22 | P32: 2 | Q32: 66
M33: Housing | O33: 22 | P33: 2 | Q33: 24
M34: Trim | N34: 42 | Q34: 42
N36: LA4 | O36: LA6 | P36: LA8
M37: FY21 | N37: =SUM(N38:N39) -> 10668.22358 | O37: =SUM(O38:O39) -> 81340.86875 | P37: 38684.40765 | Q37: =SUM(N37:P37) -> 130693.5 | R37: =Q37/247759.57 -> 0.527501319
M38: Housing | N38: =N8+(N8/N24)*N25 -> 9527.48 | O38: =O8+(O8/O24)*O25 -> 67644.92846 | P38: =P8+(P8/P24)*P25 -> 33445.33784
M39: Trim | N39: =N9+(N9/N25)*N24 -> 1140.743582 | O39: =O9+(O9/O25)*O24 -> 13695.94029 | P39: =P9+(P9/P25)*P24 -> 5239.069811
M40: FY22 | N40: =SUM(N41:N42) -> 36316.96354 | O40: =SUM(O41:O42) -> 156882.8849 | P40: 33309.85 | Q40: =SUM(N40:P40) -> 226509.6984 | R40: =Q40/498650.01 -> 0.4542458516
M41: Housing | N41: =N11+(N11/N27)*N28 -> 32072.38125 | O41: =O11+(O11/O27)*O28 -> 131239.1338 | P41: =P11+(P11/P27)*P28 -> 27296.35
M42: Trim | N42: =N12+(N12/N28)*N27 -> 4244.582292 | O42: =O12+(O12/O28)*O27 -> 25643.75106 | P42: =P12+(P12/P28)*P27 -> 6013.5
M43: FY23 | N43: =SUM(N44:N45) -> 21665.50272 | O43: =SUM(O44:O45) -> 32468.60262 | P43: 373.7 | Q43: 54507.80534 | R43: =Q43/124552.19 -> 0.4376302443
M44: Housing | N44: =N14+(N14/N30)*N31 -> 18596.02429 | O44: =O14+(O14/O30)*O31 -> 26654.03537 | P44: =P14+(P14/P30)*P31 -> 310.4
M45: Trim | N45: =N15+(N15/N31)*N30 -> 3069.47843 | O45: =O15+(O15/O31)*O30 -> 5814.56725 | P45: =P15+(P12/P28)*P30 -> 63.3

Sheet Instructions
B2: 1) | C2: Click the "Get Started" button on the "Cross Over Tool" tab
B4: 2) | C4: Enter in the fixture nomenclature from the spec sheet OR the breakout lines for the fixture
B6: 3) | C6: Click the "Cross Over Nomenclature" button
B8: 4) | C8: Check to make sure there were no errors , view "Troubleshooting Guide" tab for better understanding of issues
B10: 5) | C10: Get cross over nomenclature from the display, and enter in agile to confirm order options

Sheet Crossover Tool

Sheet Troubleshooting Guide
C3: Error Type | D3: Reason & Resolution
C4: Error: No Indy Nomenclature Entered | D4: User form entries are blank. Enter in Indy fixture nomenclature or Indy breakout lines
C5: Error: Incomplete Indy Nomenclature Entered | D5: Only one entry of Indy Housing nomenclature or Indy Trim nomenclature was inputted. Both are required.
C6: Error: Trim Series and Housing Series do not match | D6: The Indy Housing series entered does not match the Indy Trim series entered.
C7: Error: Breakout lines are incomplete and/or may conflict with Master Line | D7: Nomenclature was entered both in the master line and the breakout lines. Enter either the master line OR the breakout lines.
C8: Error: Aperture Size is incorrect | D8: The aperture size entered for the series is not a valid offering. See website for available offerings.
C9: Error: Series entered is not discontinued. Refer to spec sheets for available options | D9: The series entered is not a discontinued product and does not need to be crossed over. See spec sheet on the website for available options
C10: Error: Series entered could not be identified. Please Verify Nomenclature | D10: The series entered could not be identified in this cross over tool. Double check the first nomenclature entered.
C11: Error: Invalid Order Option: | D11: The nomenclature entered is not a valid ordering option. Review spec sheet on website for available offerings
C12: Contact Customer Support for alternative options regarding: | D12: The option inputted does not have a cross over for that series. Contact customer support for assistance.
C13: Error: Missing Required Entry in Nomenclature: | D13: A required nomenclature string is missing. Review spec sheet on website for required offerings

Sheet Sheet2 (hidden)
F2: LRT6 | K2: LRT8-10 | P2: LRT12
F3: Series | G3: LRT | H3: LBR | I3: LDNRV | K3: Series | L3: LRT | M3: LBR | N3: LDNRV | P3: Series | Q3: LRT | R3: LBR | S3: LDNRV
B4: 1 | C4: Series | F4: Lumen Package (Required) | G4: 08LM | H4: 07LM | I4: 05 | K4: Lumen Package (Required) | L4: 08LM | M4: 07LM | N4: 05 | P4: Lumen Package (Required) | Q4: 08LM | R4: 07LM | S4: n / a
B5: 2 | C5: Lumen Package (Required) | F5: Lumen Package (Required) | G5: 13LM | H5: 10LM | I5: 10 | K5: Lumen Package (Required) | L5: 13LM | M5: 10LM | N5: 10 | P5: Lumen Package (Required) | Q5: 13LM | R5: 10LM | S5: n / a
B6: 3 | C6: CCT (Required) | F6: Lumen Package (Required) | G6: 15LM | H6: 10LM | I6: 15 | K6: Lumen Package (Required) | L6: 15LM | M6: 10LM | N6: 15 | P6: Lumen Package (Required) | Q6: 15LM | R6: 10LM | S6: n / a
B7: 4 | C7: Voltage (Required) | F7: Lumen Package (Required) | G7: 17LM | H7: 15LM | I7: 20 | K7: Lumen Package (Required) | L7: 17LM | M7: 15LM | N7: 20 | P7: Lumen Package (Required) | Q7: 17LM | R7: 15LM | S7: n / a
B8: 5 | C8: Generation (Required) | F8: Lumen Package (Required) | G8: 23LM | H8: 15LM | I8: 25 | K8: Lumen Package (Required) | L8: 23LM | M8: 15LM | N8: 25 | P8: Lumen Package (Required) | Q8: 23LM | R8: 15LM | S8: n / a
B9: 6 | C9: CRI (Required) | F9: Lumen Package (Required) | G9: 28LM | H9: 20LM | I9: 30 | K9: Lumen Package (Required) | L9: 28LM | M9: 20LM | N9: 30 | P9: Lumen Package (Required) | Q9: 28LM | R9: 20LM | S9: n / a
B10: 7 | C10: Driver (Required) | F10: Lumen Package (Required) | G10: 33LM | H10: 20LM | I10: 30 | K10: Lumen Package (Required) | L10: 33LM | M10: 20LM | N10: 30 | P10: Lumen Package (Required) | Q10: 33LM | R10: 20LM | S10: n / a
B11: 8 | C11: Fusing Option | F11: Lumen Package (Required) | G11: 40LM | H11: 25LM | I11: 40 | K11: Lumen Package (Required) | L11: 40LM | M11: 25LM | N11: 40 | P11: Lumen Package (Required) | Q11: 40LM | R11: 25LM | S11: n / a
B12: 9 | C12: Territory Option | F12: Lumen Package (Required) | G12: 45LM | H12: 25LM | I12: 50 | K12: Lumen Package (Required) | L12: 45LM | M12: 25LM | N12: 50 | P12: Lumen Package (Required) | Q12: 45LM | R12: 25LM | S12: n / a
B13: 10 | C13: Emergency Battery Pack Option | F13: Lumen Package (Required) | G13: 50LM | H13: 30LM | I13: 50 | K13: Lumen Package (Required) | L13: 50LM | M13: 30LM | N13: 50 | P13: Lumen Package (Required) | Q13: 50LM | R13: 30LM | S13: n / a
B14: 11 | C14: Controls Option | F14: Lumen Package (Required) | G14: 55LM | H14: 40LM | I14: 60 | K14: Lumen Package (Required) | L14: 55LM | M14: 40LM | N14: 60 | P14: Lumen Package (Required) | Q14: 55LM | R14: 40LM | S14: n / a
B15: 12 | C15: Socket Adapter Option | F15: Lumen Package (Required) | G15: 60LM | H15: 45LM | I15: 60 | K15: Lumen Package (Required) | L15: 60LM | M15: 45LM | N15: 60 | P15: Lumen Package (Required) | Q15: 60LM | R15: 45LM | S15: n / a
B16: 13 | C16: Atrius Enabled Option | F16: Lumen Package (Required) | G16: 65LM | H16: 50LM | I16: 80 | K16: Lumen Package (Required) | L16: 65LM | M16: 50LM | N16: 80 | P16: Lumen Package (Required) | Q16: 65LM | R16: 50LM | S16: n / a
B17: 14 | C17: Trim Style (Required) | F17: Lumen Package (Required) | G17: 70LM | H17: n / a | I17: n / a | K17: Lumen Package (Required) | L17: 70LM | M17: n / a | N17: 80 | P17: Lumen Package (Required) | Q17: 70LM | R17: n / a | S17: n / a
B18: 15 | C18: Trim Finish (Required) | F18: Lumen Package (Required) | G18: 75LM | H18: n / a | I18: n / a | K18: Lumen Package (Required) | L18: 75LM | M18: n / a | N18: 80 | P18: Lumen Package (Required) | Q18: 75LM | R18: n / a | S18: n / a
B19: 16 | C19: Trim Option 1 | F19: Lumen Package (Required) | G19: 80LM | H19: n / a | I19: n / a | K19: Lumen Package (Required) | L19: 80LM | M19: n / a | N19: 80 | P19: Lumen Package (Required) | Q19: 80LM | R19: n / a | S19: n / a
B20: 17 | C20: Trim Option 2 | F20: Lumen Package (Required) | G20: 85LM | H20: n / a | I20: n / a | K20: Lumen Package (Required) | L20: 85LM | M20: n / a | N20: 100 | P20: Lumen Package (Required) | Q20: 85LM | R20: n / a | S20: n / a
F21: Lumen Package (Required) | G21: 90LM | H21: n / a | I21: n / a | K21: Lumen Package (Required) | L21: 90LM | M21: n / a | N21: 120 | P21: Lumen Package (Required) | Q21: 90LM | R21: n / a | S21: n / a
F22: Generation (Required) | G22: G4 | H22: ="" ->  | I22: ="" ->  | K22: Generation (Required) | L22: G4 | M22: ="" ->  | N22: ="" ->  | P22: Generation (Required) | Q22: G4 | R22: ="" ->  | S22: n / a
C23: LRT6 23LM 30K MVOLT G4 90CRI GZ1 NLTAIR2 | F23: CCT (Required) | G23: 27K | H23: 27K | I23: 27/ | K23: CCT (Required) | L23: 27K | M23: 27K | N23: 27/ | P23: CCT (Required) | Q23: 27K | R23: 27K | S23: n / a
C24: LRT6 P CSS PF WET | F24: CCT (Required) | G24: 30K | H24: 30K | I24: 30/ | K24: CCT (Required) | L24: 30K | M24: 30K | N24: 30/ | P24: CCT (Required) | Q24: 30K | R24: 30K | S24: n / a
C25: LRT6 23LM 30K MVOLT G4 90CRI GZ1 NLTAIR2 P CSS PF WET | F25: CCT (Required) | G25: 35K | H25: 35K | I25: 35/ | K25: CCT (Required) | L25: 35K | M25: 35K | N25: 35/ | P25: CCT (Required) | Q25: 35K | R25: 35K | S25: n / a
F26: CCT (Required) | G26: 40K | H26: 40K | I26: 40/ | K26: CCT (Required) | L26: 40K | M26: 40K | N26: 40/ | P26: CCT (Required) | Q26: 40K | R26: 40K | S26: n / a
F27: CCT (Required) | G27: 50K | H27: 50K | I27: 50/ | K27: CCT (Required) | L27: 50K | M27: 50K | N27: 50/ | P27: CCT (Required) | Q27: 50K | R27: 50K | S27: n / a
F28: Voltage (Required) | G28: 120 | H28: 120 | I28: 120 | K28: Voltage (Required) | L28: 120 | M28: 120 | N28: 120 | P28: Voltage (Required) | Q28: 120 | R28: 120 | S28: n / a
F29: Voltage (Required) | G29: 277 | H29: 277 | I29: 277 | K29: Voltage (Required) | L29: 277 | M29: 277 | N29: 277 | P29: Voltage (Required) | Q29: 277 | R29: 277 | S29: n / a
F30: Voltage (Required) | G30: 347 | H30: 347 | I30: n / a | K30: Voltage (Required) | L30: 347 | M30: 347 | N30: n / a | P30: Voltage (Required) | Q30: 347 | R30: 347 | S30: n / a
F31: Voltage (Required) | G31: MVOLT | H31: MVOLT | I31: MVOLT | K31: Voltage (Required) | L31: MVOLT | M31: MVOLT | N31: MVOLT | P31: Voltage (Required) | Q31: MVOLT | R31: MVOLT | S31: n / a
F32: CRI (Required) | G32: 80CRI | H32: ="" ->  | I32: ="" ->  | K32: CRI (Required) | L32: 80CRI | M32: ="" ->  | N32: ="" ->  | P32: CRI (Required) | Q32: 80CRI | R32: ="" ->  | S32: n / a
F33: CRI (Required) | G33: 90CRI | H33: 90CRI | I33: 90CRI | K33: CRI (Required) | L33: 90CRI | M33: 90CRI | N33: 90CRI | P33: CRI (Required) | Q33: 90CRI | R33: 90CRI | S33: n / a
F34: CRI (Required) | G34: 97CRI | H34: n / a | I34: n / a | K34: CRI (Required) | L34: 97CRI | M34: n / a | N34: n / a | P34: CRI (Required) | Q34: 97CRI | R34: n / a | S34: n / a
F35: Driver (Required) | G35: EDAB | H35: UGZ1 | I35: DALI | K35: Driver (Required) | L35: EDAB | M35: UGZ1 | N35: DALI | P35: Driver (Required) | Q35: EDAB | R35: UGZ1 | S35: n / a
F36: Driver (Required) | G36: EDXB | H36: n / a | I36: n / a | K36: Driver (Required) | L36: EDXB | M36: n / a | N36: n / a | P36: Driver (Required) | Q36: EDXB | R36: n / a | S36: n / a
F37: Driver (Required) | G37: EZ10 | H37: UGZ | I37: GZ10 | K37: Driver (Required) | L37: EZ10 | M37: UGZ | N37: GZ10 | P37: Driver (Required) | Q37: EZ10 | R37: UGZ | S37: n / a
F38: Driver (Required) | G38: EZ1 | H38: UGZ1 | I38: EZ1 | K38: Driver (Required) | L38: EZ1 | M38: UGZ1 | N38: EZ1 | P38: Driver (Required) | Q38: EZ1 | R38: UGZ1 | S38: n / a
F39: Driver (Required) | G39: EZB | H39: n / a | I39: n / a | K39: Driver (Required) | L39: EZB | M39: n / a | N39: n / a | P39: Driver (Required) | Q39: EZB | R39: n / a | S39: n / a
F40: Driver (Required) | G40: FD | H40: UGZ | I40: n / a | K40: Driver (Required) | L40: FD | M40: UGZ | N40: n / a | P40: Driver (Required) | Q40: FD | R40: UGZ | S40: n / a
F41: Driver (Required) | G41: ECOD | H41: n / a | I41: n / a | K41: Driver (Required) | L41: ECOD | M41: n / a | N41: n / a | P41: Driver (Required) | Q41: ECOD | R41: n / a | S41: n / a
F42: Driver (Required) | G42: ZT | H42: UGZ | I42: GZ10 | K42: Driver (Required) | L42: ZT | M42: UGZ | N42: GZ10 | P42: Driver (Required) | Q42: ZT | R42: UGZ | S42: n / a
F43: Driver (Required) | G43: GZ1 | H43: UGZ1 | I43: GZ1 | K43: Driver (Required) | L43: GZ1 | M43: UGZ1 | N43: GZ1 | P43: Driver (Required) | Q43: GZ1 | R43: UGZ1 | S43: n / a
F44: Fusing Option | G44: F | H44: n / a | I44: SF | K44: Fusing Option | L44: F | M44: n / a | N44: SF | P44: Fusing Option | Q44: F | R44: n / a | S44: n / a
F45: Territory Option | G45: CP | H45: CP | I45: n / a | K45: Territory Option | L45: CP | M45: CP | N45: n / a | P45: Territory Option | Q45: CP | R45: CP | S45: n / a
F46: Emergency Battery Pack Option | G46: BR | H46: ELR | I46: n / a | K46: Emergency Battery Pack Option | L46: BR | M46: ELR | N46: n / a | P46: Emergency Battery Pack Option | Q46: BR | R46: ELR | S46: n / a
F47: Emergency Battery Pack Option | G47: BRT20C | H47: E10WCPR | I47: n / a | K47: Emergency Battery Pack Option | L47: BRT20C | M47: E10WCPR | N47: n / a | P47: Emergency Battery Pack Option | Q47: BRT20C | R47: E10WCPR | S47: n / a
F48: Emergency Battery Pack Option | G48: HBR | H48: n / a | I48: n / a | K48: Emergency Battery Pack Option | L48: HBR | M48: n / a | N48: n / a | P48: Emergency Battery Pack Option | Q48: HBR | R48: n / a | S48: n / a
F49: Controls Option | G49: NL | H49: NPS80EZ | I49: n / a | K49: Controls Option | L49: NL | M49: NPS80EZ | N49: n / a | P49: Controls Option | Q49: NL | R49: NPS80EZ | S49: n / a
F50: Controls Option | G50: NLER | H50: NPS80EZER | I50: n / a | K50: Controls Option | L50: NLER | M50: NPS80EZER | N50: n / a | P50: Controls Option | Q50: NLER | R50: NPS80EZER | S50: n / a
F51: Controls Option | G51: NLTAIR2 | H51: NLTAIR2 | I51: NLTAIR2 | K51: Controls Option | L51: NLTAIR2 | M51: NLTAIR2 | N51: NLTAIR2 | P51: Controls Option | Q51: NLTAIR2 | R51: NLTAIR2 | S51: n / a
F52: Controls Option | G52: NLTAIRER2 | H52: NLTAIRER2 | I52: NLTAIRER2 | K52: Controls Option | L52: NLTAIRER2 | M52: NLTAIRER2 | N52: NLTAIRER2 | P52: Controls Option | Q52: NLTAIRER2 | R52: NLTAIRER2 | S52: n / a
F53: Socket Adapter Option | G53: INC | H53: n / a | I53: n / a | K53: Socket Adapter Option | L53: INC | M53: n / a | N53: n / a | P53: Socket Adapter Option | Q53: INC | R53: n / a | S53: n / a
F54: Atrius Enabled Option | G54: AE2CD | H54: AE2BD | I54: n / a | K54: Atrius Enabled Option | L54: AE2CD | M54: AE2BD | N54: n / a | P54: Atrius Enabled Option | Q54: AE2CD | R54: AE2BD | S54: n / a
F55: Trim Style (Required) | G55: HM | H55: n / a | I55: n / a | K55: Trim Style (Required) | L55: HM | M55: n / a | N55: n / a | P55: Trim Style (Required) | Q55: HM | R55: n / a | S55: n / a
F56: Trim Style (Required) | G56: HW | H56: n / a | I56: n / a | K56: Trim Style (Required) | L56: HW | M56: n / a | N56: n / a | P56: Trim Style (Required) | Q56: HW | R56: n / a | S56: n / a
F57: Trim Style (Required) | G57: HWS | H57: n / a | I57: n / a | K57: Trim Style (Required) | L57: HWS | M57: n / a | N57: n / a | P57: Trim Style (Required) | Q57: HWS | R57: n / a | S57: n / a
F58: Trim Style (Required) | G58: P | H58: ="" ->  | I58: LR | K58: Trim Style (Required) | L58: P | M58: ="" ->  | N58: LR | P58: Trim Style (Required) | Q58: P | R58: ="" ->  | S58: n / a
F59: Trim Style (Required) | G59: WS | H59: WW | I59: LRW | K59: Trim Style (Required) | L59: WS | M59: WW | N59: LRW | P59: Trim Style (Required) | Q59: WS | R59: WW | S59: n / a
F60: Trim Finish (Required) | G60: CD | H60: n / a | I60: AR LD | K60: Trim Finish (Required) | L60: CD | M60: n / a | N60: AR LD | P60: Trim Finish (Required) | Q60: CD | R60: n / a | S60: n / a
F61: Trim Finish (Required) | G61: CS | H61: n / a | I61: AR LS | K61: Trim Finish (Required) | L61: CS | M61: n / a | N61: AR LS | P61: Trim Finish (Required) | Q61: CS | R61: n / a | S61: n / a
F62: Trim Finish (Required) | G62: CSS | H62: AR LSS MWD | I62: AR LSS | K62: Trim Finish (Required) | L62: CSS | M62: AR LSS MWD | N62: AR LSS | P62: Trim Finish (Required) | Q62: CSS | R62: AR LSS MWD | S62: n / a
F63: Trim Finish (Required) | G63: WH | H63: WR | I63: WR | K63: Trim Finish (Required) | L63: WH | M63: WR | N63: WR | P63: Trim Finish (Required) | Q63: WH | R63: WR | S63: n / a
F64: Trim Option 1 | G64: PF | H64: TRW | I64: TRW | K64: Trim Option 1 | L64: PF | M64: TRW | N64: TRW | P64: Trim Option 1 | Q64: PF | R64: TRW | S64: n / a
F65: Trim Option 2 | G65: WET | H65: WL | I65: ="" ->  | K65: Trim Option 2 | L65: WET | M65: WL | N65: ="" ->  | P65: Trim Option 2 | Q65: WET | R65: WL | S65: n / a
